[Event "CCT Chessable Masters Play-In 2025"]
[Site "Online"]
[Date "2025.02.17"]
[Round "1.36"]
[White "Aditya Mittal"]
[Black "Sargsyan, Shant"]
[Result "0-1"]
[ECO "C90"]
[WhiteElo "2550"]
[BlackElo "2660"]
[PlyCount "90"]
[EventDate "2025.02.13"]
[EventType "swiss"]
[EventCountry "NET"]
[TimeControl "600"]
[WhiteClock "0:01:33"]
[BlackClock "0:04:49"]

1. e4 {[%emt 0:00:01]} e5 {[%emt 0:00:02]} 2. Nf3 {[%emt 0:00:02]} Nc6 {[%emt 0:00:00]} 3. Bb5 {[%emt 0:00:01]} a6 {[%emt 0:00:01]} 4. Ba4 {[%emt 0:00:00]} Nf6 {[%emt 0:00:00]} 5. O-O {[%emt 0:00:01]} Be7 {[%emt 0:00:01]} 6. Re1 {[%emt 0:00:03]} b5 {[%emt 0:00:00]} 7. Bb3 {[%emt 0:00:01]} O-O {[%emt 0:00:01]} 8. d3 {[%emt 0:00:09]} d6 {[%emt 0:00:01]} 9. a3 {[%emt 0:00:15]} Be6 {[%emt 0:00:10]} 10. c3 {[%emt 0:00:20]} Qd7 {[%emt 0:00:12]} 11. Nbd2 {[%emt 0:00:01]} h6 {[%emt 0:00:01]} 12. Nf1 {[%emt 0:00:03]} Rfe8 {[%emt 0:00:05]} 13. Ng3 {[%emt 0:00:08]} Bf8 {[%emt 0:00:01]} 14. d4 {[%emt 0:00:27]} Bxb3 {[%emt 0:00:12]} 15. Qxb3 {[%emt 0:00:01]} Na5 {[%emt 0:00:00]} 16. Qc2 {[%emt 0:00:03]} c5 {[%emt 0:00:01]} 17. d5 {[%emt 0:00:29]} c4 {[%emt 0:00:02]} 18. Nd2 {[%emt 0:00:33]} g6 {[%emt 0:00:06]} 19. a4 {[%emt 0:00:10]} h5 {[%emt 0:00:03]} 20. b4 {[%emt 0:00:36]} cxb3 {[%emt 0:00:02]} 21. Nxb3 {[%emt 0:00:01]} Nc4 {[%emt 0:00:00]} 22. Nd2 {[%emt 0:00:43]} Nb6 {[%emt 0:00:02]} 23. a5 {[%emt 0:00:04]} Na4 {[%emt 0:00:01]} 24. c4 {[%emt 0:00:30]} Rec8 {[%emt 0:00:01]} 25. Ba3 {[%emt 0:00:11]} Bh6 {[%emt 0:00:08]} 26. Ngf1 {[%emt 0:00:03]} h4 {[%emt 0:00:36]} 27. h3 {[%emt 0:00:02]} Nh5 {[%emt 0:00:01]} 28. Qb3 {[%emt 0:00:14]} Nc5 {[%emt 0:00:08]} 29. Qf3 {[%emt 0:00:18]} Nf4 {[%emt 0:00:05]} 30. Reb1 {[%emt 0:00:10]} Ncd3 {[%emt 0:00:40]} 31. Ne3 {[%emt 0:00:05]} Rab8 {[%emt 0:00:09]} 32. Qg4 {[%emt 0:00:04]} Qa7 {[%emt 0:00:51]} 33. Ndf1 {[%emt 0:01:32]} b4 {[%emt 0:00:04]} 34. Bc1 {[%emt 0:00:21]} Qd4 {[%emt 0:00:16]} 35. Nf5 {[%emt 0:00:14]} Qxf2+ {[%emt 0:00:10]} 36. Kh2 {[%emt 0:00:01]} Bf8 {[%emt 0:00:19]} 37. Be3 {[%emt 0:00:03]} Qxg2+ {[%emt 0:00:07]} 38. Qxg2 {[%emt 0:00:02]} Nxg2 {[%emt 0:00:00]} 39. Kxg2 {[%emt 0:00:09]} gxf5 {[%emt 0:00:01]} 40. exf5 {[%emt 0:00:05]} Rxc4 {[%emt 0:00:01]} 41. Nd2 {[%emt 0:00:00]} Rc2 {[%emt 0:00:06]} 42. Kf3 {[%emt 0:00:01]} e4+ {[%emt 0:00:19]} 43. Nxe4 {[%emt 0:00:02]} Ne5+ {[%emt 0:00:02]} 44. Kf4 {[%emt 0:00:02]} Bh6+ {[%emt 0:00:00]} 45. Ng5 {[%emt 0:00:06]} Rc4+ {[%emt 0:00:03]} 0-1

[Event "CCT Chessable Masters Play-In 2025"]
[Site "Online"]
[Date "2025.02.17"]
[Round "1.37"]
[White "Sarana, Alexey"]
[Black "Murzin, Volodar"]
[Result "1-0"]
[ECO "D46"]
[WhiteElo "2672"]
[BlackElo "2657"]
[PlyCount "57"]
[EventDate "2025.02.13"]
[EventType "swiss"]
[EventCountry "NET"]
[TimeControl "600"]
[WhiteClock "0:05:06"]
[BlackClock "0:01:57"]

1. d4 {[%emt 0:00:01]} Nf6 {[%emt 0:00:03]} 2. c4 {[%emt 0:00:00]} c6 {[%emt 0:00:09]} 3. Nc3 {[%emt 0:00:01]} d5 {[%emt 0:00:01]} 4. Nf3 {[%emt 0:00:03]} e6 {[%emt 0:00:03]} 5. e3 {[%emt 0:00:02]} Nbd7 {[%emt 0:00:04]} 6. Bd3 {[%emt 0:00:02]} Bd6 {[%emt 0:00:35]} 7. e4 {[%emt 0:00:12]} dxc4 {[%emt 0:01:11]} 8. Bxc4 {[%emt 0:00:00]} e5 {[%emt 0:00:17]} 9. dxe5 {[%emt 0:00:02]} Nxe5 {[%emt 0:00:10]} 10. Nxe5 {[%emt 0:00:09]} Bxe5 {[%emt 0:00:00]} 11. Qxd8+ {[%emt 0:00:01]} Kxd8 {[%emt 0:00:01]} 12. Bxf7 {[%emt 0:00:02]} Rf8 {[%emt 0:00:35]} 13. Bb3 {[%emt 0:00:05]} Bxc3+ {[%emt 0:00:03]} 14. bxc3 {[%emt 0:00:01]} Nxe4 {[%emt 0:00:00]} 15. O-O {[%emt 0:00:04]} Kc7 {[%emt 0:01:23]} 16. Re1 {[%emt 0:01:13]} Bf5 {[%emt 0:01:21]} 17. f3 {[%emt 0:00:29]} Nc5 {[%emt 0:00:28]} 18. Re7+ {[%emt 0:00:03]} Kb6 {[%emt 0:00:05]} 19. Be3 {[%emt 0:00:57]} Rfe8 {[%emt 0:00:02]} 20. Rxe8 {[%emt 0:00:02]} Rxe8 {[%emt 0:00:00]} 21. Bd4 {[%emt 0:00:13]} Re2 {[%emt 0:00:21]} 22. a4 {[%emt 0:00:37]} a5 {[%emt 0:00:17]} 23. Bc4 {[%emt 0:00:02]} Rb2 {[%emt 0:00:01]} 24. Re1 {[%emt 0:00:05]} Rb1 {[%emt 0:00:04]} 25. Rxb1+ {[%emt 0:00:04]} Bxb1 {[%emt 0:00:00]} 26. Bb3 {[%emt 0:00:02]} g6 {[%emt 0:00:14]} 27. h4 {[%emt 0:00:03]} Bd3 {[%emt 0:00:27]} 28. Kf2 {[%emt 0:00:04]} Bb5 {[%emt 0:00:08]} 29. Ke3 {[%emt 0:00:15]} 1-0

[Event "CCT Chessable Masters Play-In 2025"]
[Site "Online"]
[Date "2025.02.17"]
[Round "1.38"]
[White "Narayanan S L"]
[Black "Sadhwani, Raunak"]
[Result "1-0"]
[ECO "B06"]
[WhiteElo "2622"]
[BlackElo "2666"]
[PlyCount "133"]
[EventDate "2025.02.13"]
[EventType "swiss"]
[EventCountry "NET"]
[TimeControl "600"]
[WhiteClock "0:02:53"]
[BlackClock "0:01:58"]

1. d4 {[%emt 0:00:03]} g6 {[%emt 0:00:03]} 2. Nf3 {[%emt 0:00:01]} Bg7 {[%emt 0:00:00]} 3. e4 {[%emt 0:00:01]} d6 {[%emt 0:00:02]} 4. Bd3 {[%emt 0:00:01]} e5 {[%emt 0:00:09]} 5. dxe5 {[%emt 0:00:03]} dxe5 {[%emt 0:00:01]} 6. O-O {[%emt 0:00:01]} Ne7 {[%emt 0:00:04]} 7. Qe2 {[%emt 0:00:02]} O-O {[%emt 0:00:07]} 8. Rd1 {[%emt 0:00:02]} Nd7 {[%emt 0:00:01]} 9. a4 {[%emt 0:00:21]} a5 {[%emt 0:00:20]} 10. b3 {[%emt 0:00:03]} h6 {[%emt 0:00:08]} 11. Ba3 {[%emt 0:00:02]} Re8 {[%emt 0:00:10]} 12. Nbd2 {[%emt 0:00:14]} Nc6 {[%emt 0:00:04]} 13. c3 {[%emt 0:00:02]} Qf6 {[%emt 0:00:06]} 14. Nc4 {[%emt 0:00:07]} Bf8 {[%emt 0:00:08]} 15. Bxf8 {[%emt 0:00:03]} Kxf8 {[%emt 0:00:00]} 16. Ne3 {[%emt 0:00:03]} Ne7 {[%emt 0:00:12]} 17. Bc2 {[%emt 0:00:20]} h5 {[%emt 0:00:02]} 18. Nc4 {[%emt 0:00:19]} Nc6 {[%emt 0:00:07]} 19. Ne3 {[%emt 0:00:01]} Ne7 {[%emt 0:00:03]} 20. Nc4 {[%emt 0:00:03]} Kg7 {[%emt 0:00:08]} 21. Rd2 {[%emt 0:00:06]} Nc5 {[%emt 0:00:10]} 22. Ncxe5 {[%emt 0:00:28]} Bg4 {[%emt 0:00:03]} 23. Nxg4 {[%emt 0:00:07]} hxg4 {[%emt 0:00:00]} 24. Nd4 {[%emt 0:00:01]} Qh4 {[%emt 0:00:06]} 25. Nb5 {[%emt 0:00:14]} Ne6 {[%emt 0:00:29]} 26. Qe3 {[%emt 0:00:05]} Rh8 {[%emt 0:00:10]} 27. Qg3 {[%emt 0:00:02]} Qg5 {[%emt 0:00:01]} 28. Rad1 {[%emt 0:00:03]} Rh5 {[%emt 0:00:01]} 29. Nxc7 {[%emt 0:00:08]} Nxc7 {[%emt 0:00:06]} 30. Qxc7 {[%emt 0:00:00]} Rah8 {[%emt 0:00:01]} 31. Rd7 {[%emt 0:01:07]} Rxh2 {[%emt 0:00:28]} 32. Kf1 {[%emt 0:00:02]} Rh1+ {[%emt 0:00:43]} 33. Ke2 {[%emt 0:00:01]} Rxd1 {[%emt 0:00:00]} 34. Bxd1 {[%emt 0:00:02]} Re8 {[%emt 0:00:03]} 35. Qc4 {[%emt 0:00:11]} Qf4 {[%emt 0:00:41]} 36. Qd4+ {[%emt 0:00:05]} Kh7 {[%emt 0:00:09]} 37. Bc2 {[%emt 0:00:19]} Nc6 {[%emt 0:00:12]} 38. Qe3 {[%emt 0:00:09]} Qf6 {[%emt 0:00:02]} 39. Rxb7 {[%emt 0:00:13]} Ne5 {[%emt 0:00:09]} 40. Rb5 {[%emt 0:00:02]} Qa6 {[%emt 0:00:21]} 41. Bd3 {[%emt 0:00:08]} Nxd3 {[%emt 0:00:10]} 42. Qxd3 {[%emt 0:00:01]} Qc6 {[%emt 0:00:00]} 43. f3 {[%emt 0:00:02]} gxf3+ {[%emt 0:00:02]} 44. gxf3 {[%emt 0:00:00]} Qc7 {[%emt 0:00:02]} 45. Qe3 {[%emt 0:00:04]} Rd8 {[%emt 0:00:11]} 46. Rd5 {[%emt 0:00:01]} Rb8 {[%emt 0:00:01]} 47. Rb5 {[%emt 0:00:29]} Rd8 {[%emt 0:00:03]} 48. f4 {[%emt 0:00:00]} Re8 {[%emt 0:00:29]} 49. Rd5 {[%emt 0:00:20]} Qb7 {[%emt 0:00:16]} 50. c4 {[%emt 0:00:01]} Qc8 {[%emt 0:00:05]} 51. f5 {[%emt 0:00:01]} Qc6 {[%emt 0:00:06]} 52. fxg6+ {[%emt 0:00:03]} Qxg6 {[%emt 0:00:00]} 53. Qh3+ {[%emt 0:00:01]} Kg7 {[%emt 0:00:09]} 54. Qf5 {[%emt 0:00:19]} Qg2+ {[%emt 0:00:11]} 55. Kd3 {[%emt 0:00:01]} Qg3+ {[%emt 0:00:10]} 56. Kc2 {[%emt 0:00:02]} Qg2+ {[%emt 0:00:01]} 57. Kc3 {[%emt 0:00:03]} Qg3+ {[%emt 0:00:04]} 58. Kb2 {[%emt 0:00:03]} Qg2+ {[%emt 0:00:00]} 59. Ka3 {[%emt 0:00:01]} Rxe4 {[%emt 0:00:04]} 60. Qg5+ {[%emt 0:00:01]} Qxg5 {[%emt 0:00:01]} 61. Rxg5+ {[%emt 0:00:00]} Kh6 {[%emt 0:00:01]} 62. Rxa5 {[%emt 0:00:01]} Kg6 {[%emt 0:00:00]} 63. Rd5 {[%emt 0:00:01]} f5 {[%emt 0:00:01]} 64. a5 {[%emt 0:00:01]} f4 {[%emt 0:00:00]} 65. Rd2 {[%emt 0:00:04]} f3 {[%emt 0:00:01]} 66. Rf2 {[%emt 0:00:01]} Rf4 {[%emt 0:00:04]} 67. a6 {[%emt 0:00:01]} 1-0

[Event "CCT Chessable Masters Play-In 2025"]
[Site "Online"]
[Date "2025.02.17"]
[Round "1.39"]
[White "Dubov, Daniil"]
[Black "Bachmann, Axel"]
[Result "1/2-1/2"]
[ECO "E61"]
[WhiteElo "2701"]
[BlackElo "2570"]
[PlyCount "87"]
[EventDate "2025.02.13"]
[EventType "swiss"]
[EventCountry "NET"]
[TimeControl "600"]
[WhiteClock "0:02:49"]
[BlackClock "0:05:21"]

1. Nf3 {[%emt 0:00:01]} Nf6 {[%emt 0:00:06]} 2. c4 {[%emt 0:00:02]} g6 {[%emt 0:00:09]} 3. Nc3 {[%emt 0:00:04]} Bg7 {[%emt 0:00:01]} 4. d4 {[%emt 0:00:01]} O-O {[%emt 0:00:03]} 5. Bg5 {[%emt 0:00:01]} h6 {[%emt 0:00:03]} 6. Bh4 {[%emt 0:00:02]} d6 {[%emt 0:00:04]} 7. e3 {[%emt 0:00:01]} g5 {[%emt 0:00:05]} 8. Bg3 {[%emt 0:00:01]} Nh5 {[%emt 0:00:00]} 9. Bd3 {[%emt 0:00:08]} e6 {[%emt 0:00:02]} 10. Nd2 {[%emt 0:00:11]} Nxg3 {[%emt 0:00:09]} 11. hxg3 {[%emt 0:00:00]} c5 {[%emt 0:00:13]} 12. d5 {[%emt 0:00:03]} e5 {[%emt 0:00:03]} 13. g4 {[%emt 0:00:07]} a6 {[%emt 0:00:08]} 14. a4 {[%emt 0:00:11]} Nd7 {[%emt 0:00:09]} 15. Nde4 {[%emt 0:00:06]} Nf6 {[%emt 0:00:05]} 16. Nxf6+ {[%emt 0:00:22]} Qxf6 {[%emt 0:00:00]} 17. Ne4 {[%emt 0:00:01]} Qe7 {[%emt 0:00:01]} 18. Ng3 {[%emt 0:00:16]} e4 {[%emt 0:00:05]} 19. Bxe4 {[%emt 0:00:12]} Bxb2 {[%emt 0:00:07]} 20. Rxh6 {[%emt 0:01:04]} Bxa1 {[%emt 0:00:18]} 21. Qxa1 {[%emt 0:00:12]} Qe5 {[%emt 0:00:00]} 22. Qxe5 {[%emt 0:00:11]} dxe5 {[%emt 0:00:01]} 23. Nh5 {[%emt 0:00:32]} f5 {[%emt 0:00:35]} 24. gxf5 {[%emt 0:00:16]} Bxf5 {[%emt 0:00:00]} 25. Bxf5 {[%emt 0:00:04]} Rxf5 {[%emt 0:00:00]} 26. Ng3 {[%emt 0:00:06]} Rf7 {[%emt 0:00:04]} 27. Rb6 {[%emt 0:00:01]} Raf8 {[%emt 0:00:45]} 28. Ne4 {[%emt 0:00:01]} g4 {[%emt 0:00:00]} 29. a5 {[%emt 0:00:04]} Kh8 {[%emt 0:00:27]} 30. Ke2 {[%emt 0:00:02]} Rh7 {[%emt 0:00:12]} 31. Kd3 {[%emt 0:00:50]} Rh1 {[%emt 0:00:06]} 32. Rxb7 {[%emt 0:00:09]} Rd1+ {[%emt 0:00:03]} 33. Kc2 {[%emt 0:00:02]} Ra1 {[%emt 0:00:06]} 34. Re7 {[%emt 0:00:46]} g3 {[%emt 0:00:06]} 35. fxg3 {[%emt 0:00:21]} Ra2+ {[%emt 0:00:00]} 36. Kd3 {[%emt 0:00:14]} Ra3+ {[%emt 0:00:02]} 37. Nc3 {[%emt 0:00:05]} Rf1 {[%emt 0:00:05]} 38. Ke2 {[%emt 0:00:11]} Rf8 {[%emt 0:00:12]} 39. Ne4 {[%emt 0:00:03]} Ra2+ {[%emt 0:00:00]} 40. Kd3 {[%emt 0:00:01]} Ra3+ {[%emt 0:00:01]} 41. Kd2 {[%emt 0:00:01]} Ra2+ {[%emt 0:00:01]} 42. Kc3 {[%emt 0:00:02]} Ra3+ {[%emt 0:00:01]} 43. Kd2 {[%emt 0:00:03]} Ra2+ {[%emt 0:00:01]} 44. Kd3 {[%emt 0:00:00]} 1/2-1/2

[Event "CCT Chessable Masters Play-In 2025"]
[Site "Online"]
[Date "2025.02.17"]
[Round "1.40"]
[White "Moroni, Luca Jr"]
[Black "Pantsulaia, Levan"]
[Result "1-0"]
[ECO "A43"]
[WhiteElo "2552"]
[BlackElo "2522"]
[PlyCount "59"]
[EventDate "2025.02.13"]
[EventType "swiss"]
[EventCountry "NET"]
[TimeControl "600"]
[WhiteClock "0:02:29"]
[BlackClock "0:01:16"]

1. c4 {[%emt 0:00:02]} g6 {[%emt 0:00:05]} 2. Nc3 {[%emt 0:00:02]} Bg7 {[%emt 0:00:01]} 3. d4 {[%emt 0:00:01]} c5 {[%emt 0:00:02]} 4. d5 {[%emt 0:00:04]} d6 {[%emt 0:00:00]} 5. e4 {[%emt 0:00:06]} Bxc3+ {[%emt 0:00:03]} 6. bxc3 {[%emt 0:00:00]} e5 {[%emt 0:00:00]} 7. f4 {[%emt 0:00:05]} Qf6 {[%emt 0:00:02]} 8. fxe5 {[%emt 0:00:15]} Qh4+ {[%emt 0:00:01]} 9. Kd2 {[%emt 0:00:20]} Qxe4 {[%emt 0:00:01]} 10. Bd3 {[%emt 0:01:19]} Qxg2+ {[%emt 0:00:36]} 11. Ne2 {[%emt 0:00:03]} Nd7 {[%emt 0:00:40]} 12. e6 {[%emt 0:00:55]} fxe6 {[%emt 0:00:05]} 13. Rg1 {[%emt 0:00:03]} Qxh2 {[%emt 0:00:03]} 14. Kc2 {[%emt 0:00:08]} e5 {[%emt 0:01:04]} 15. Qf1 {[%emt 0:00:36]} Ndf6 {[%emt 0:01:36]} 16. Rh1 {[%emt 0:00:19]} Bh3 {[%emt 0:00:02]} 17. Qxh3 {[%emt 0:01:03]} Qxh3 {[%emt 0:00:04]} 18. Rxh3 {[%emt 0:00:00]} e4 {[%emt 0:00:01]} 19. Re3 {[%emt 0:00:03]} Nh6 {[%emt 0:01:54]} 20. Bxe4 {[%emt 0:00:26]} Kd7 {[%emt 0:00:03]} 21. Bd3 {[%emt 0:00:27]} Nhg4 {[%emt 0:00:05]} 22. Re6 {[%emt 0:00:06]} Raf8 {[%emt 0:01:07]} 23. Bg5 {[%emt 0:00:13]} Rf7 {[%emt 0:00:09]} 24. Rf1 {[%emt 0:00:23]} Rhf8 {[%emt 0:00:01]} 25. Ng3 {[%emt 0:00:07]} Ne8 {[%emt 0:00:47]} 26. Re7+ {[%emt 0:00:08]} Rxe7 {[%emt 0:00:01]} 27. Rxf8 {[%emt 0:00:00]} Rg7 {[%emt 0:00:01]} 28. Ne4 {[%emt 0:00:09]} Ne5 {[%emt 0:00:04]} 29. Bf1 {[%emt 0:00:05]} Rf7 {[%emt 0:00:06]} 30. Bh3+ {[%emt 0:00:03]} 1-0

[Event "CCT Chessable Masters Play-In 2025"]
[Site "Online"]
[Date "2025.02.17"]
[Round "1.41"]
[White "Pichot, Alan"]
[Black "Sankalp Gupta"]
[Result "1-0"]
[ECO "C11"]
[WhiteElo "2613"]
[BlackElo "2538"]
[PlyCount "95"]
[EventDate "2025.02.13"]
[EventType "swiss"]
[EventCountry "NET"]
[TimeControl "600"]
[WhiteClock "0:03:51"]
[BlackClock "0:05:25"]

1. e4 {[%emt 0:00:02]} e6 {[%emt 0:00:01]} 2. d4 {[%emt 0:00:03]} d5 {[%emt 0:00:01]} 3. Nc3 {[%emt 0:00:01]} Nf6 {[%emt 0:00:00]} 4. e5 {[%emt 0:00:02]} Nfd7 {[%emt 0:00:01]} 5. f4 {[%emt 0:00:02]} c5 {[%emt 0:00:00]} 6. Nf3 {[%emt 0:00:01]} Nc6 {[%emt 0:00:00]} 7. Be3 {[%emt 0:00:01]} a6 {[%emt 0:00:01]} 8. Qd2 {[%emt 0:00:08]} b5 {[%emt 0:00:00]} 9. dxc5 {[%emt 0:00:02]} Bxc5 {[%emt 0:00:01]} 10. Bd3 {[%emt 0:00:02]} Qb6 {[%emt 0:00:01]} 11. Bf2 {[%emt 0:00:01]} Bxf2+ {[%emt 0:00:15]} 12. Qxf2 {[%emt 0:00:03]} Qxf2+ {[%emt 0:00:00]} 13. Kxf2 {[%emt 0:00:00]} O-O {[%emt 0:00:00]} 14. Rhe1 {[%emt 0:00:07]} h6 {[%emt 0:00:03]} 15. Kg1 {[%emt 0:00:41]} f6 {[%emt 0:00:04]} 16. exf6 {[%emt 0:00:02]} Rxf6 {[%emt 0:00:00]} 17. Ne2 {[%emt 0:00:49]} Nc5 {[%emt 0:00:06]} 18. a3 {[%emt 0:00:08]} Bd7 {[%emt 0:00:08]} 19. b4 {[%emt 0:00:06]} Nxd3 {[%emt 0:00:06]} 20. cxd3 {[%emt 0:00:02]} a5 {[%emt 0:00:01]} 21. Ne5 {[%emt 0:00:16]} Nxe5 {[%emt 0:00:06]} 22. fxe5 {[%emt 0:00:00]} Rff8 {[%emt 0:00:01]} 23. Rec1 {[%emt 0:00:19]} Ra7 {[%emt 0:00:07]} 24. Nd4 {[%emt 0:00:16]} Rfa8 {[%emt 0:00:04]} 25. Nb3 {[%emt 0:00:07]} axb4 {[%emt 0:00:14]} 26. axb4 {[%emt 0:00:02]} Ra3 {[%emt 0:00:01]} 27. Rxa3 {[%emt 0:00:07]} Rxa3 {[%emt 0:00:00]} 28. Nc5 {[%emt 0:00:01]} Bc8 {[%emt 0:00:06]} 29. Kf2 {[%emt 0:00:08]} Kf8 {[%emt 0:00:12]} 30. Ke3 {[%emt 0:00:01]} Ke7 {[%emt 0:00:01]} 31. Rc2 {[%emt 0:00:06]} Bd7 {[%emt 0:00:14]} 32. Nxd7 {[%emt 0:00:46]} Kxd7 {[%emt 0:00:01]} 33. Rc5 {[%emt 0:00:00]} Ra2 {[%emt 0:00:02]} 34. Rxb5 {[%emt 0:00:03]} Rxg2 {[%emt 0:00:02]} 35. Rb7+ {[%emt 0:00:02]} Kc8 {[%emt 0:00:37]} 36. Re7 {[%emt 0:00:04]} g5 {[%emt 0:00:01]} 37. Rxe6 {[%emt 0:00:18]} Rxh2 {[%emt 0:00:01]} 38. Kd4 {[%emt 0:00:04]} g4 {[%emt 0:00:03]} 39. Rg6 {[%emt 0:00:02]} h5 {[%emt 0:00:25]} 40. Kxd5 {[%emt 0:00:12]} Re2 {[%emt 0:00:37]} 41. d4 {[%emt 0:00:10]} Re3 {[%emt 0:00:19]} 42. Kc6 {[%emt 0:00:08]} Kd8 {[%emt 0:00:09]} 43. Kd6 {[%emt 0:00:05]} Ke8 {[%emt 0:00:02]} 44. e6 {[%emt 0:00:04]} Kf8 {[%emt 0:00:01]} 45. d5 {[%emt 0:00:05]} g3 {[%emt 0:00:01]} 46. Kd7 {[%emt 0:00:03]} h4 {[%emt 0:00:02]} 47. d6 {[%emt 0:00:02]} Re1 {[%emt 0:00:17]} 48. b5 {[%emt 0:00:15]} 1-0

[Event "CCT Chessable Masters Play-In 2025"]
[Site "Online"]
[Date "2025.02.17"]
[Round "1.42"]
[White "Bartel, Mateusz"]
[Black "Yakubboev, Nodirbek"]
[Result "1/2-1/2"]
[ECO "B50"]
[WhiteElo "2629"]
[BlackElo "2659"]
[PlyCount "102"]
[EventDate "2025.02.13"]
[EventType "swiss"]
[EventCountry "NET"]
[TimeControl "600"]
[WhiteClock "0:00:55"]
[BlackClock "0:01:40"]

1. e4 {[%emt 0:00:02]} c5 {[%emt 0:00:04]} 2. Nf3 {[%emt 0:00:01]} d6 {[%emt 0:00:01]} 3. c3 {[%emt 0:00:02]} Nf6 {[%emt 0:00:01]} 4. Bd3 {[%emt 0:00:04]} Nc6 {[%emt 0:00:29]} 5. Bc2 {[%emt 0:00:02]} Bg4 {[%emt 0:00:16]} 6. h3 {[%emt 0:00:02]} Bxf3 {[%emt 0:00:03]} 7. Qxf3 {[%emt 0:00:03]} g6 {[%emt 0:00:02]} 8. O-O {[%emt 0:00:07]} Bg7 {[%emt 0:00:01]} 9. Qd1 {[%emt 0:00:07]} d5 {[%emt 0:00:11]} 10. d3 {[%emt 0:00:06]} O-O {[%emt 0:00:03]} 11. Nd2 {[%emt 0:00:09]} e5 {[%emt 0:00:03]} 12. a4 {[%emt 0:00:03]} Qc7 {[%emt 0:00:06]} 13. exd5 {[%emt 0:00:08]} Nxd5 {[%emt 0:00:01]} 14. Ne4 {[%emt 0:00:01]} b6 {[%emt 0:00:02]} 15. Bb3 {[%emt 0:00:03]} Rad8 {[%emt 0:00:10]} 16. Bg5 {[%emt 0:00:02]} f6 {[%emt 0:00:06]} 17. Bd2 {[%emt 0:00:31]} Kh8 {[%emt 0:00:02]} 18. Qf3 {[%emt 0:00:19]} Nf4 {[%emt 0:00:05]} 19. Bc4 {[%emt 0:00:19]} h6 {[%emt 0:00:22]} 20. Rad1 {[%emt 0:01:03]} f5 {[%emt 0:00:58]} 21. Ng3 {[%emt 0:00:01]} Ne7 {[%emt 0:00:01]} 22. Rfe1 {[%emt 0:00:13]} Nfd5 {[%emt 0:00:22]} 23. Bc1 {[%emt 0:00:09]} Qd7 {[%emt 0:00:12]} 24. Bb5 {[%emt 0:00:03]} Qc8 {[%emt 0:00:03]} 25. h4 {[%emt 0:00:13]} a6 {[%emt 0:00:09]} 26. Bc4 {[%emt 0:00:01]} Qd7 {[%emt 0:00:09]} 27. Bb3 {[%emt 0:00:04]} b5 {[%emt 0:00:04]} 28. axb5 {[%emt 0:00:02]} axb5 {[%emt 0:00:00]} 29. Nf1 {[%emt 0:00:12]} Qc7 {[%emt 0:00:05]} 30. Ne3 {[%emt 0:00:23]} Nf4 {[%emt 0:00:09]} 31. Bc2 {[%emt 0:00:06]} c4 {[%emt 0:00:19]} 32. dxc4 {[%emt 0:00:21]} Rxd1 {[%emt 0:00:20]} 33. Nxd1 {[%emt 0:00:12]} bxc4 {[%emt 0:00:01]} 34. g3 {[%emt 0:00:14]} Nfd5 {[%emt 0:00:27]} 35. Ne3 {[%emt 0:00:06]} e4 {[%emt 0:00:13]} 36. Qe2 {[%emt 0:00:14]} Nxe3 {[%emt 0:00:02]} 37. Bxe3 {[%emt 0:00:00]} Nd5 {[%emt 0:00:02]} 38. Bc1 {[%emt 0:00:09]} h5 {[%emt 0:00:06]} 39. Rd1 {[%emt 0:00:02]} Qc6 {[%emt 0:00:30]} 40. Bg5 {[%emt 0:00:26]} Nf6 {[%emt 0:00:19]} 41. Rd4 {[%emt 0:00:10]} Rc8 {[%emt 0:00:07]} 42. Qd2 {[%emt 0:00:10]} Ng4 {[%emt 0:00:02]} 43. Rd6 {[%emt 0:00:05]} Qe8 {[%emt 0:00:03]} 44. Bd1 {[%emt 0:00:26]} Ne5 {[%emt 0:00:20]} 45. Qd5 {[%emt 0:00:01]} Nd3 {[%emt 0:00:11]} 46. Rd7 {[%emt 0:00:23]} Nxb2 {[%emt 0:00:22]} 47. Bh6 {[%emt 0:00:22]} Bxh6 {[%emt 0:00:11]} 48. Qd4+ {[%emt 0:00:05]} Kg8 {[%emt 0:00:02]} 49. Qd5+ {[%emt 0:00:03]} Kh8 {[%emt 0:00:06]} 50. Qd4+ {[%emt 0:00:17]} Kg8 {[%emt 0:00:01]} 51. Qd5+ {[%emt 0:00:38]} Kh8 {[%emt 0:00:16]} 1/2-1/2